fUSD/lending_fUSD_20241116
["ID","MTS","AMOUNT","RATE_DAILY","PERIOD"]
[342356970,1731778238240,-500.0,9.973e-05,2]
[342356971,1731778238249,-500.0,9.973e-05,2]
[342356972,1731778238258,-500.0,9.973e-05,2]
[342356974,1731778238267,-505.00873855,9.973e-05,2]
[342356975,1731778238279,-509.88122267,9.973e-05,2]
[342356976,1731778238291,-500.0,9.973e-05,2]
[342356977,1731778238302,-403.8453013,9.973e-05,2]
[342356978,1731778238311,-500.0,9.973e-05,2]
[342356979,1731778238321,-328.65979869,9.981e-05,2]
[342356980,1731778238330,-2528.271,9.982e-05,2]
[342356981,1731778238339,-175.947,9.982e-05,2]
[342356982,1731778238349,-1469.5848849,9.992e-05,2]
[342356983,1731778238359,-1259.3910668,9.992e-05,2]
[342356984,1731778238368,-1804.5671852,9.993e-05,2]
[342356985,1731778238378,-2139.5494855,9.993e-05,2]
[342356986,1731778238387,-1102.6221223,9.993e-05,2]
[342356987,1731778238397,-945.8531778,9.993e-05,2]
[342356988,1731778238406,-500.0,9.998e-05,2]
[342356989,1731778238415,-2226.61,9.998e-05,2]
[342356990,1731778238424,-500.0,9.998e-05,2]
[342356991,1731778238433,-500.0,9.998e-05,2]
[342356992,1731778238443,-223.14418829,9.999e-05,2]
[342356993,1731778238452,-500.0,9.999e-05,2]
[342356994,1731778238463,-500.0,9.999e-05,2]
[342356995,1731778238472,-500.0,9.999e-05,2]
[342356996,1731778238482,-500.0,9.999e-05,2]
[342356997,1731778238491,-500.0,9.999e-05,2]
[342356998,1731778238500,-500.0,9.999e-05,2]
[342356999,1731778238511,-500.0,9.999e-05,2]
[342357000,1731778238520,-630.88,9.999e-05,2]
[342357001,1731778238533,-500.0,9.999e-05,2]
[342357002,1731778238542,-558.44784794,9.999e-05,2]
[342357003,1731778238551,-700.54,9.999e-05,2]
[342357004,1731778238560,-700.54,9.999e-05,2]
[342357005,1731778238569,-700.54,9.999e-05,2]
[342357006,1731778238578,-700.54,9.999e-05,2]
[342357007,1731778238588,-700.54,9.999e-05,2]
[342357008,1731778238597,-700.54,9.999e-05,2]
[342357009,1731778238606,-700.54,9.999e-05,2]
[342357010,1731778238615,-700.54,9.999e-05,2]
[342357011,1731778238624,-700.54,9.999e-05,2]
[342357012,1731778238634,-700.54,9.999e-05,2]
[342357013,1731778238647,-700.54,9.999e-05,2]
[342357014,1731778238658,-700.54,9.999e-05,2]
[342357015,1731778238668,-700.54,9.999e-05,2]
[342357016,1731778238677,-700.54,9.999e-05,2]
[342357017,1731778238687,-500.0,9.999e-05,2]
[342357018,1731778238696,-700.54,9.999e-05,2]
[342357019,1731778238705,-390.30111677,9.999e-05,2]
[342357020,1731778238714,-700.54,9.999e-05,2]
[342357021,1731778238723,-700.54,9.999e-05,2]
[342357022,1731778238732,-700.54,9.999e-05,2]
[342357023,1731778238743,-700.54,9.999e-05,2]
[342357024,1731778238753,-700.54,9.999e-05,2]
[342357025,1731778238763,-700.54,9.999e-05,2]
[342357026,1731778238773,-700.54,9.999e-05,2]
[342357027,1731778238783,-700.69,9.999e-05,2]
[342357028,1731778238791,-500.0,9.999e-05,2]
[342357029,1731778238801,-500.0,9.999e-05,2]
[342357030,1731778238810,-500.0,9.999e-05,2]
[342357031,1731778238819,-500.0,9.999e-05,2]
[342357032,1731778238828,-500.0,9.999e-05,2]
[342357033,1731778238837,-500.0,9.999e-05,2]
[342357034,1731778238847,-500.0,9.999e-05,2]
[342357035,1731778238857,-500.0,9.999e-05,2]
[342357036,1731778238867,-500.0,9.999e-05,2]
[342357037,1731778238877,-500.0,9.999e-05,2]
[342357038,1731778238886,-500.0,9.999e-05,2]
[342357040,1731778238897,-500.0,9.999e-05,2]
[342357042,1731778238906,-500.0,9.999e-05,2]
[342357044,1731778238915,-500.0,9.999e-05,2]
[342357045,1731778238924,-500.0,9.999e-05,2]
[342357047,1731778238934,-285.71122893,9.999e-05,2]
[342357049,1731778238944,-500.0,9.999e-05,2]
[342357050,1731778238954,-500.0,9.999e-05,2]
[342357051,1731778238963,-500.0,9.999e-05,2]
[342357052,1731778238972,-500.0,9.999e-05,2]
[342357053,1731778238981,-500.0,9.999e-05,2]
[342357054,1731778238991,-500.0,9.999e-05,2]
[342357055,1731778239000,-500.0,9.999e-05,2]
[342357056,1731778239010,-500.0,9.999e-05,2]
[342357057,1731778239020,-646.73,9.999e-05,2]
[342357058,1731778239030,-500.0,9.999e-05,2]
[342357059,1731778239039,-206.40608529,9.999e-05,2]
[342357060,1731778239049,-500.0,9.999e-05,2]
[342357061,1731778239059,-500.0,9.999e-05,2]
[342357062,1731778239068,-500.0,9.999e-05,2]
[342357063,1731778239077,-576.97,9.999e-05,2]
[342357064,1731778239086,-500.0,9.999e-05,2]
[342357065,1731778239096,-500.0,9.999e-05,2]
[342357066,1731778239105,-500.0,9.999e-05,2]
[342357067,1731778239114,-368.02,9.999e-05,2]
[342357068,1731778239123,-500.0,9.999e-05,2]
[342357069,1731778239132,-500.0,9.999e-05,2]
[342357070,1731778239141,-500.0,9.999e-05,2]
[342357071,1731778239151,-500.0,9.999e-05,2]
[342357072,1731778239160,-500.0,9.999e-05,2]
[342357073,1731778239169,-500.0,9.999e-05,2]
[342357074,1731778239179,-500.0,9.999e-05,2]
[342357075,1731778239188,-500.0,9.999e-05,2]
[342357076,1731778239198,-500.0,9.999e-05,2]
[342357077,1731778239207,-500.0,9.999e-05,2]
[342357078,1731778239216,-500.0,9.999e-05,2]
[342357079,1731778239225,-444.36,9.999e-05,2]
[342357080,1731778239235,-500.0,9.999e-05,2]
[342357081,1731778239244,-500.0,9.999e-05,2]
[342357082,1731778239253,-500.0,9.999e-05,2]
[342357083,1731778239263,-500.0,9.999e-05,2]
[342357084,1731778239272,-500.0,9.999e-05,2]
[342357085,1731778239283,-500.0,9.999e-05,2]
[342357086,1731778239297,-500.0,9.999e-05,2]
[342357087,1731778239306,-575.96,9.999e-05,2]
[342357088,1731778239316,-500.0,9.999e-05,2]
[342357089,1731778239325,-500.0,9.999e-05,2]
[342357090,1731778239335,-500.0,9.999e-05,2]
[342357091,1731778239344,-500.0,9.999e-05,2]
[342357092,1731778239353,-633.5,9.999e-05,2]
[342357093,1731778239363,-500.0,9.999e-05,2]
[342357094,1731778239372,-500.0,9.999e-05,2]
[342357095,1731778239381,-500.0,9.999e-05,2]
[342357096,1731778239390,-214.28,9.999e-05,2]
[342357097,1731778239399,-500.46444184,9.999e-05,2]
[342357098,1731778239408,-1552.97,9.999e-05,2]
[342357099,1731778239417,-1552.97,9.999e-05,2]
[342357100,1731778239426,-1552.97,9.999e-05,2]
[342357101,1731778239435,-1552.97,9.999e-05,2]
[342357102,1731778239444,-517.02,9.999e-05,2]
[342357103,1731778239453,-1552.97,9.999e-05,2]
[342357104,1731778239463,-517.02,9.999e-05,2]
[342357105,1731778239472,-1552.97,9.999e-05,2]
[342357106,1731778239481,-517.02,9.999e-05,2]
[342357107,1731778239490,-1552.97,9.999e-05,2]
[342357108,1731778239500,-517.02,9.999e-05,2]
[342357109,1731778239509,-1552.97,9.999e-05,2]
[342357110,1731778239518,-517.02,9.999e-05,2]
[342357111,1731778239529,-517.02,9.999e-05,2]
[342357112,1731778239538,-1552.97,9.999e-05,2]
[342357113,1731778239547,-517.02,9.999e-05,2]
[342357114,1731778239556,-1552.97,9.999e-05,2]
[342357115,1731778239565,-517.02,9.999e-05,2]
[342357116,1731778239574,-1552.97,9.999e-05,2]
[342357117,1731778239583,-517.02,9.999e-05,2]
[342357118,1731778239593,-517.02,9.999e-05,2]
[342357119,1731778239602,-1552.97,9.999e-05,2]
[342357120,1731778239611,-517.02,9.999e-05,2]
[342357121,1731778239620,-1552.97,9.999e-05,2]
[342357122,1731778239629,-517.02,9.999e-05,2]
[342357123,1731778239638,-1552.97,9.999e-05,2]
[342357124,1731778239647,-517.02,9.999e-05,2]
[342357125,1731778239656,-1552.97,9.999e-05,2]
[342357126,1731778239665,-1552.97,9.999e-05,2]
[342357127,1731778239674,-517.02,9.999e-05,2]
[342357128,1731778239684,-1552.97,9.999e-05,2]
[342357129,1731778239693,-517.02,9.999e-05,2]
[342357130,1731778239701,-1552.97,9.999e-05,2]
[342357131,1731778239710,-517.02,9.999e-05,2]
[342357132,1731778239719,-1552.97,9.999e-05,2]
[342357133,1731778239728,-517.02,9.999e-05,2]
[342357134,1731778239737,-1552.97,9.999e-05,2]
[342357135,1731778239747,-517.02,9.999e-05,2]
[342357136,1731778239756,-517.02,9.999e-05,2]
[342357137,1731778239765,-1552.97,9.999e-05,2]
[342357138,1731778239774,-517.02,9.999e-05,2]
[342357139,1731778239783,-1552.97,9.999e-05,2]
[342357140,1731778239793,-517.02,9.999e-05,2]
[342357141,1731778239802,-1553.05232126,9.999e-05,2]
[342357142,1731778239812,-517.02,9.999e-05,2]
[342357143,1731778239821,-517.17,9.999e-05,2]
[342357144,1731778239831,-500.0,9.999e-05,2]
[342357145,1731778239840,-500.0,9.999e-05,2]
[342357146,1731778239850,-446.52,9.999e-05,2]
[342357147,1731778239862,-2326.19,9.999e-05,2]
[342357148,1731778239871,-2326.19,9.999e-05,2]
[342357149,1731778239880,-2326.19,9.999e-05,2]
[342357150,1731778239891,-2326.19,9.999e-05,2]
[342357151,1731778239900,-2326.19,9.999e-05,2]
[342357152,1731778239909,-2326.19,9.999e-05,2]
[342357153,1731778239918,-2326.19,9.999e-05,2]
[342357154,1731778239927,-2326.19,9.999e-05,2]
[342357155,1731778239939,-2326.19,9.999e-05,2]
[342357156,1731778239948,-2326.19,9.999e-05,2]
[342357157,1731778239957,-2326.19,9.999e-05,2]
[342357158,1731778239966,-2326.19,9.999e-05,2]
[342357159,1731778239976,-2326.19,9.999e-05,2]
[342357160,1731778239985,-2326.19,9.999e-05,2]
[342357161,1731778239995,-2326.19,9.999e-05,2]
[342357162,1731778240004,-2326.19,9.999e-05,2]
[342357163,1731778240014,-2326.19,9.999e-05,2]
[342357164,1731778240023,-2326.19,9.999e-05,2]
[342357165,1731778240034,-2326.19,9.999e-05,2]
[342357166,1731778240043,-2326.19,9.999e-05,2]
[342357167,1731778240052,-2326.19,9.999e-05,2]
[342357168,1731778240061,-2326.19,9.999e-05,2]
[342357169,1731778240070,-2326.31,9.999e-05,2]
[342357170,1731778240079,-500.0,9.999e-05,2]
[342357171,1731778240089,-234.32,9.999e-05,2]
[342357172,1731778240098,-500.0,9.999e-05,2]
[342357173,1731778240107,-500.0,9.999e-05,2]
[342357174,1731778240116,-500.0,9.999e-05,2]
[342357176,1731778240125,-598.3,9.999e-05,2]
[342357177,1731778240338,-500.0,9.999e-05,2]
[342357178,1731778240348,-500.0,9.999e-05,2]
[342357179,1731778240358,-500.0,9.999e-05,2]
[342357180,1731778240367,-327.43,9.999e-05,2]
[342357181,1731778240377,-500.0,9.999e-05,2]
[342357182,1731778240386,-500.0,9.999e-05,2]
[342357183,1731778240395,-500.0,9.999e-05,2]
[342357184,1731778240404,-500.0,9.999e-05,2]
[342357185,1731778240413,-586.01236194,9.999e-05,2]
[342357186,1731778240422,-25128.17325322,9.999e-05,2]
[342357187,1731778240432,-500.0,9.999e-05,2]
[342357188,1731778240441,-500.0,9.999e-05,2]
[342357189,1731778240450,-500.0,9.999e-05,2]
[342357190,1731778240459,-500.0,9.999e-05,2]
[342357191,1731778240469,-500.0,9.999e-05,2]
[342357192,1731778240478,-500.0,9.999e-05,2]
[342357193,1731778240487,-505.51062815,9.999e-05,2]
[342357195,1731778240497,-500.0,9.999e-05,2]
[342357196,1731778240506,-500.0,9.999e-05,2]
[342357197,1731778240515,-500.0,9.999e-05,2]
[342357198,1731778240524,-500.0,9.999e-05,2]
[342357199,1731778240536,-500.0,9.999e-05,2]
[342357200,1731778240545,-605.28000001,9.999e-05,2]
[342357201,1731778240554,-500.0,9.999e-05,2]
[342357202,1731778240564,-500.0,9.999e-05,2]
[342357204,1731778240573,-500.0,9.999e-05,2]
[342357206,1731778240582,-500.0,9.999e-05,2]
[342357208,1731778240591,-500.0,9.999e-05,2]
[342357210,1731778240600,-500.0,9.999e-05,2]
[342357211,1731778240609,-500.0,9.999e-05,2]
[342357212,1731778240618,-500.0,9.999e-05,2]
[342357213,1731778240627,-500.0,9.999e-05,2]
[342357214,1731778240636,-195.02,9.999e-05,2]
[342357215,1731778240645,-500.0,9.999e-05,2]
[342357216,1731778240654,-500.0,9.999e-05,2]
[342357217,1731778240663,-500.0,9.999e-05,2]
[342357218,1731778240671,-500.0,9.999e-05,2]
[342357219,1731778240681,-500.0,9.999e-05,2]
[342357220,1731778240690,-500.0,9.999e-05,2]
[342357221,1731778240699,-500.0,9.999e-05,2]
[342357222,1731778240709,-500.0,9.999e-05,2]
[342357223,1731778240718,-500.0,9.999e-05,2]
[342357224,1731778240727,-500.0,9.999e-05,2]
[342357225,1731778240737,-478.38,9.999e-05,2]
[342357226,1731778240747,-500.0,9.999e-05,2]
[342357227,1731778240756,-500.0,9.999e-05,2]
[342357228,1731778240765,-616.56,9.999e-05,2]
[342357229,1731778240775,-2226.61,9.999e-05,2]
[342357230,1731778240785,-2226.61,9.999e-05,2]
[342357231,1731778240795,-2226.61,9.999e-05,2]
[342357232,1731778240805,-2226.61,9.999e-05,2]
[342357233,1731778240814,-2226.61,9.999e-05,2]
[342357234,1731778240824,-2226.61,9.999e-05,2]
[342357235,1731778240834,-2226.61,9.999e-05,2]
[342357236,1731778240843,-2226.61,9.999e-05,2]
[342357237,1731778240853,-2226.61,9.999e-05,2]
[342357238,1731778240867,-2226.61,9.999e-05,2]
[342357239,1731778240875,-2226.61,9.999e-05,2]
[342357240,1731778240884,-2226.61,9.999e-05,2]
[342357241,1731778240895,-2226.61,9.999e-05,2]
[342357242,1731778240904,-2226.61,9.999e-05,2]
[342357243,1731778240913,-2226.61,9.999e-05,2]
[342357244,1731778240923,-500.0,9.999e-05,2]
[342357245,1731778240932,-2226.61,9.999e-05,2]
[342357246,1731778240943,-172.02349732,9.999e-05,2]
[342357247,1731778240953,-2226.61,9.999e-05,2]
[342357248,1731778240963,-2226.61,9.999e-05,2]
[342357249,1731778240972,-2226.61,9.999e-05,2]
[342357250,1731778240982,-2226.61,9.999e-05,2]
[342357251,1731778240991,-2226.61,9.999e-05,2]
[342357252,1731778241001,-2226.83813018,9.999e-05,2]
[342357253,1731778241010,-500.0,9.999e-05,2]
[342357254,1731778241019,-500.0,9.999e-05,2]
[342357255,1731778241032,-500.0,9.999e-05,2]
[342357256,1731778241043,-500.0,9.999e-05,2]
[342357257,1731778241052,-249.34395356,9.999e-05,2]
[342357258,1731778241062,-500.0,9.999e-05,2]
[342357259,1731778241071,-500.0,9.999e-05,2]
[342357260,1731778241081,-391.48,9.999e-05,2]
[342357261,1731778241090,-509.81,9.999e-05,2]
[342357262,1731778241100,-509.81,9.999e-05,2]
[342357263,1731778241109,-509.81,9.999e-05,2]
[342357264,1731778241119,-509.81,9.999e-05,2]
[342357265,1731778241128,-509.81,9.999e-05,2]
[342357266,1731778241137,-509.81,9.999e-05,2]
[342357267,1731778241147,-509.81,9.999e-05,2]
[342357268,1731778241156,-509.81,9.999e-05,2]
[342357269,1731778241165,-509.81,9.999e-05,2]
[342357270,1731778241175,-509.81,9.999e-05,2]
[342357271,1731778241184,-509.81,9.999e-05,2]
[342357272,1731778241193,-6.82798297,9.999e-05,2]
[342357273,1731778241212,-502.98201703,9.999e-05,2]
[342357274,1731778241221,-509.81,9.999e-05,2]
[342357275,1731778241230,-509.81,9.999e-05,2]
[342357276,1731778241240,-509.81,9.999e-05,2]
[342357277,1731778241250,-509.81,9.999e-05,2]
[342357278,1731778241259,-509.81,9.999e-05,2]
[342357279,1731778241268,-509.81,9.999e-05,2]
[342357280,1731778241279,-509.81,9.999e-05,2]
[342357281,1731778241288,-509.81,9.999e-05,2]
[342357282,1731778241297,-509.81,9.999e-05,2]
[342357283,1731778241307,-509.81,9.999e-05,2]
[342357284,1731778241316,-509.9,9.999e-05,2]
[342357285,1731778241326,-501.64,9.999e-05,2]
[342357286,1731778241335,-301.29776525,9.999e-05,2]
[342357287,1731778241344,-500.0,9.999e-05,2]
[342357288,1731778241354,-500.0,9.999e-05,2]
[342357289,1731778241363,-574.67,9.999e-05,2]
[342357290,1731778241372,-1390.16,9.999e-05,2]
[342357291,1731778241381,-500.0,9.999e-05,2]
[342357292,1731778241390,-500.0,9.999e-05,2]
[342357293,1731778241399,-4533.06110413,0.0001,2]
[342357294,1731778241408,-217341.09686096,0.0001,2]
[342357295,1731778241417,-238.445,0.0001,2]
[342357296,1731778241426,-1260.0,0.0001,2]
[342357297,1731778241435,-3746.0,0.0001,2]
[342357298,1731778241444,-814.0,0.0001,2]
[342357299,1731778241453,-916.119,0.0001,2]
[342357300,1731778241462,-3490.0,0.0001,2]
[342357301,1731778241472,-151.497,0.0001,2]
[342357302,1731778241481,-304.013,0.0001,2]
[342357303,1731778241490,-975.074,0.0001,2]
[342357304,1731778241499,-5933.0,0.0001,2]
[342357305,1731778241508,-1160.0,0.0001,2]
[342357306,1731778241517,-13639.0,0.0001,2]
[342357307,1731778241527,-628.0,0.0001,2]
[342357308,1731778241536,-233.16570146,0.0001,2]
[342357309,1731778241545,-1000.0,0.0001,2]
[342357310,1731778241554,-1000.0,0.0001,2]
[342357311,1731778241563,-1000.0,0.0001,2]
[342357312,1731778241572,-1000.0,0.0001,2]
[342357313,1731778241581,-1000.0,0.0001,2]
[342357314,1731778241590,-1000.0,0.0001,2]
[342357315,1731778241599,-1000.0,0.0001,2]
[342357316,1731778241608,-1000.0,0.0001,2]
[342357317,1731778241617,-1000.0,0.0001,2]
[342357318,1731778241626,-1000.0,0.0001,2]
[342357319,1731778241635,-1000.0,0.0001,2]
[342357320,1731778241644,-1000.0,0.0001,2]
[342357321,1731778241653,-1000.0,0.0001,2]
[342357322,1731778241662,-1000.0,0.0001,2]
[342357323,1731778241671,-1000.0,0.0001,2]
[342357324,1731778241680,-1000.0,0.0001,2]
[342357325,1731778241689,-255.0,0.0001,2]
[342357326,1731778241698,-20045.0,0.0001,2]
[342357327,1731778241707,-123805.92422166,0.0001,2]
[342357328,1731778241719,-956.71339648,0.0001,2]
[342357329,1731778241803,-500.0,9.999e-05,2]
[342357330,1731778241812,-393.51,9.999e-05,2]
[342357331,1731778241822,-3373.55473156,0.0001,2]
[342357332,1731778241833,-3562.70720313,0.0001,2]
[342357333,1731778241844,-2469.6475625,0.0001,2]
[342357334,1731778241857,-820.46999826,0.0001,2]
[342357335,1731778242366,-74.92381789,0.0001,2]
[342357336,1731778242385,-500.0,9.699e-05,2]
[342357337,1731778242394,-408.7288787,0.0001,2]
[342357338,1731778242422,-500.0,9.699e-05,2]
[342357339,1731778242431,-3659.49184347,0.0001,2]
[342357340,1731778242442,-762.2151,0.0001,2]
[342357341,1731778242453,-9160.73065682,0.0001,2]
[342357342,1731778242469,-577316.96505974,0.0001,2]
[342357343,1731778242480,-836724.37232157,0.0001,2]
[342357344,1731778242503,-500.0,9.999e-05,2]
[342357345,1731778242512,-107703.36941223,0.0001,2]
[342357346,1731778242523,-1474466.38738126,0.0001,2]
[342357347,1731778242534,-297.09462196,0.0001,2]
[342357348,1731778242543,-1000.0,0.0001,2]
[342357349,1731778242552,-1000.0,0.0001,2]
[342357350,1731778242561,-1000.0,0.0001,2]
[342357351,1731778242570,-1000.0,0.0001,2]
[342357352,1731778242579,-1000.0,0.0001,2]
[342357353,1731778242589,-1000.0,0.0001,2]
[342357354,1731778242598,-2063207.54445765,0.0001,2]
[342357355,1731778242607,-55720.08561845,0.0001,2]
[342357356,1731778242616,-736.80750325,0.0001,2]
[342357357,1731778242625,-150.47403947,0.0001,2]
[342357358,1731778242634,-1000.0,0.0001,2]
[342357359,1731778242643,-1000.0,0.0001,2]
[342357360,1731778242652,-1000.0,0.0001,2]
[342357361,1731778242661,-10000.0,0.0001,2]
[342357362,1731778242670,-1000.0,0.0001,2]
[342357363,1731778242679,-2166924.66643321,0.0001,2]
[342357364,1731778242688,-213281.81430117,0.0001,2]
[342357365,1731778242697,-9654.17495905,0.0001,2]
[342357366,1731778242706,-9789668.8359553,0.0001,2]
[342357367,1731778242715,-1592665.61018544,0.0001,2]
[342357368,1731778242723,-4931492.13742214,0.0001,2]
[342357369,1731778242733,-9528105.56800147,0.0001,2]
[342357370,1731778242742,-733383.85025158,0.0001,2]
[342357371,1731778242870,-470.59406132,9.699e-05,2]
[342357372,1731778242881,-29.40593868,9.699e-05,2]
[342357373,1731778242890,-352.23389439,9.998e-05,2]
[342357374,1731778242902,-147.76610561,9.998e-05,2]
[342357375,1731778242911,-500.0,9.998e-05,2]
[342357376,1731778242920,-500.0,9.999e-05,2]
[342357377,1731778242929,-500.0,9.999e-05,2]
[342357378,1731778242939,-500.0,9.999e-05,2]
[342357379,1731778242948,-51.56479787,9.999e-05,2]
[342357380,1731778242976,-500.0,9.699e-05,2]
[342357381,1731778242985,-448.43520213,9.999e-05,2]
[342357382,1731778242994,-80.16589602,9.999e-05,2]
[342357383,1731778243005,-322.98999996,9.999e-05,2]
[342357384,1731778243016,-96.84410402,9.999e-05,2]
[342357385,1731778243026,-500.0,9.999e-05,2]
[342357386,1731778243036,-500.0,9.999e-05,2]
[342357387,1731778243045,-500.0,9.999e-05,2]
[342357388,1731778243054,-503.81477401,9.999e-05,2]
[342357389,1731778243063,-106.6019639,9.999e-05,2]
[342357390,1731778243074,-333.05575001,9.999e-05,2]
[342357391,1731778243085,-60.34228609,9.999e-05,2]
[342357392,1731778243095,-212.10107064,9.999e-05,2]
[342357398,1731778243351,-500.0,9.699e-05,2]
[342357399,1731778243362,-182.34401315,9.699e-05,2]
[342357400,1731778243373,-500.0,9.899e-05,2]
[342357401,1731778243383,-500.0,9.899e-05,2]
[342357402,1731778243392,-500.0,9.998e-05,2]
[342357403,1731778243401,-500.0,9.998e-05,2]
[342357404,1731778243410,-287.89892936,9.999e-05,2]
[342357405,1731778243420,-500.0,9.999e-05,2]
[342357406,1731778243429,-500.0,9.999e-05,2]
[342357407,1731778243437,-500.0,9.999e-05,2]
[342357408,1731778243445,-500.0,9.999e-05,2]
[342357409,1731778243452,-500.0,9.999e-05,2]
[342357410,1731778243460,-521.29195746,9.999e-05,2]
[342357411,1731778243482,-22.06556173,9.999e-05,2]
[342357412,1731778243493,-618.94640431,9.999e-05,2]
[342357413,1731778243504,-500.0,9.999e-05,2]
[342357415,1731778243513,-500.0,9.999e-05,2]
[342357416,1731778243522,-500.0,9.999e-05,2]
[342357417,1731778243533,-500.0,9.999e-05,2]
[342357418,1731778243543,-70.79986412,9.999e-05,2]
[342357419,1731778243556,-429.20013588,9.999e-05,2]
[342357420,1731778243567,-500.0,9.999e-05,2]
[342357421,1731778243578,-500.0,9.999e-05,2]
[342357422,1731778243590,-532.72,9.999e-05,2]
[342357423,1731778243601,-500.0,9.999e-05,2]
[342357424,1731778243611,-500.0,9.999e-05,2]
[342357425,1731778243622,-500.0,9.999e-05,2]
[342357426,1731778243632,-500.0,9.999e-05,2]
[342357428,1731778243642,-500.0,9.999e-05,2]
[342357430,1731778243652,-1991.0,0.0001,2]
[342357432,1731778243663,-3892.26809771,0.0001,2]
[342357434,1731778243676,-269.86286693,0.0001,2]
[342357435,1731778243688,-646.12000003,0.0001,2]
[342357436,1731778243701,-4007.79999926,0.0001,2]
[342357437,1731778243867,-281.13193997,0.0001,2]
[342357438,1731778243879,-53344.18603805,0.0001,2]
[342357444,1731778246267,-500.0,9.699e-05,2]
[342357445,1731778246279,-500.0,9.699e-05,2]
[342357446,1731778246290,-500.0,9.699e-05,2]
[342357447,1731778246300,-500.0,9.899e-05,2]
[342357448,1731778246310,-500.0,9.899e-05,2]
[342357449,1731778246321,-500.0,9.998e-05,2]
[342357450,1731778246331,-411.36,9.998e-05,2]
[342357451,1731778246341,-167.52903661,9.999e-05,2]
[342357452,1731778246351,-500.0,9.999e-05,2]
[342357453,1731778246361,-500.0,9.999e-05,2]
[342357454,1731778246372,-500.0,9.999e-05,2]
[342357455,1731778246383,-500.0,9.999e-05,2]
[342357456,1731778246393,-500.0,9.999e-05,2]
[342357457,1731778246403,-500.0,9.999e-05,2]
[342357458,1731778246415,-500.0,9.999e-05,2]
[342357459,1731778246426,-500.0,9.999e-05,2]
[342357460,1731778246437,-500.0,9.999e-05,2]
[342357461,1731778246448,-500.0,9.999e-05,2]
[342357462,1731778246458,-495.15,9.999e-05,2]
[342357463,1731778246468,-10669.73246339,0.0001,2]
[342357464,1731778246760,-12498.22426704,0.0001,2]
[342357465,1731778246772,-10280.40613826,0.0001,2]
[342357466,1731778246786,-2937.988844,0.0001,2]
[342357467,1731778246798,-11273.923,0.0001,2]
[342357468,1731778246810,-16784.39596112,0.0001,2]
[342357469,1731778246821,-1718.58340047,0.0001,2]
[342357470,1731778246842,-500.0,9.999e-05,2]
[342357471,1731778246852,-489.3625025,0.0001,2]
[342357472,1731778246869,-90845.48761263,0.0001,2]
[342357473,1731778246890,-500.0,9.999e-05,2]
[342357474,1731778246900,-88678.63548683,0.0001,2]
[342357475,1731778247050,-691.96789926,0.0001,2]
[342357476,1731778247104,-2333.499999,0.0001,2]
[342357477,1731778247116,-1109.6045491,0.0001,2]
[342357478,1731778247128,-1040.13974568,0.0001,2]
[342357481,1731778400372,2000.0,0.00024999,120]
[342357482,1731778536593,156.84,8.219e-05,2]
[342357483,1731778556640,1302.83,8.219e-05,2]
[342357484,1731778558165,161.15,7.13e-05,2]
[342357485,1731778794977,1000.0,8.406e-05,2]
[342357489,1731778991583,250.0,8.255e-05,2]
[342357490,1731779001882,2000.0,0.00024705,120]
[342357491,1731779098954,11621.77452483,8.479e-05,2]
[342357492,1731779201390,10608.92,8.311e-05,2]
[342357494,1731779209342,161.15,6.633e-05,2]
[342357495,1731779221569,300.0,8.1e-05,2]
[342357496,1731779223682,700.0,8.2e-05,2]
[342357497,1731779225795,1000.0,8.3e-05,3]
[342357498,1731779227887,1400.0,8.4e-05,3]
[342357499,1731779230061,1800.0,8.5e-05,3]
[342357500,1731779230114,150.0,7.718e-05,2]
[342357501,1731779235170,-150.0,8.575e-05,2]
[342357502,1731779235193,-150.0,8.578e-05,2]